fUST/lending_fUST_20250803
["ID","MTS","AMOUNT","RATE_DAILY","PERIOD"]
[377037752,1754217039690,-460.0,0.00027945,10]
[377037754,1754217039699,-460.0,0.00027945,10]
[377037756,1754217039709,-460.0,0.00027945,10]
[377037758,1754217039718,-460.0,0.00027945,10]
[377037760,1754217039727,-464.79128366,0.00027945,10]
[377037762,1754217039736,-460.0,0.00027945,10]
[377037765,1754217039746,-460.0,0.00027945,10]
[377037767,1754217039755,-460.0,0.00027945,10]
[377037769,1754217039765,-460.0,0.00027945,10]
[377037771,1754217039775,-460.0,0.00027945,10]
[377037773,1754217039785,-460.0,0.00027945,10]
[377037775,1754217039795,-460.0,0.00027945,10]
[377037777,1754217039805,-465.24854606,0.00027945,10]
[377037779,1754217039815,-460.0,0.00027945,10]
[377037781,1754217039824,-460.0,0.00027945,10]
[377037783,1754217039834,-460.0,0.00027945,10]
[377037785,1754217039844,-460.0,0.00027945,10]
[377037787,1754217039853,-460.0,0.00027945,10]
[377037789,1754217039863,-460.0,0.00027945,10]
[377037791,1754217039873,-460.0,0.00027945,10]
[377037793,1754217039882,-460.0,0.00027945,10]
[377037795,1754217039891,-460.0,0.00027945,10]
[377037797,1754217039902,-575.67878301,0.00027945,10]
[377037799,1754217039911,-466.21978464,0.00027945,10]
[377037801,1754217039921,-460.0,0.00027945,10]
[377037803,1754217039930,-460.0,0.00027945,10]
[377037805,1754217039940,-460.0,0.00027945,10]
[377037807,1754217039949,-460.0,0.00027945,10]
[377037809,1754217039959,-460.0,0.00027945,10]
[377037811,1754217039968,-460.0,0.00027945,10]
[377037813,1754217039978,-265.0,0.00027945,10]
[377037815,1754217039987,-460.0,0.00027945,10]
[377037817,1754217039996,-463.5884753,0.00027945,10]
[377037819,1754217040006,-460.0,0.00027945,10]
[377037821,1754217040015,-460.0,0.00027945,10]
[377037823,1754217040024,-460.0,0.00027945,10]
[377037825,1754217040034,-460.0,0.00027945,10]
[377037827,1754217040044,-460.0,0.00027945,10]
[377037829,1754217040054,-460.0,0.00027945,10]
[377037831,1754217040063,-460.0,0.00027945,10]
[377037833,1754217040073,-460.0,0.00027945,10]
[377037835,1754217040082,-460.0,0.00027945,10]
[377037837,1754217040092,-460.0,0.00027945,10]
[377037839,1754217040101,-460.0,0.00027945,10]
[377037841,1754217040110,-460.0,0.00027945,10]
[377037843,1754217040120,-460.0,0.00027945,10]
[377037845,1754217040129,-460.0,0.00027945,10]
[377037847,1754217040139,-460.0,0.00027945,10]
[377037849,1754217040148,-460.0,0.00027945,10]
[377037851,1754217040157,-339.90743187,0.00027945,10]
[377037853,1754217040167,-460.0,0.00027945,10]
[377037855,1754217040176,-460.0,0.00027945,10]
[377037858,1754217040196,-460.0,0.00027945,10]
[377037860,1754217040206,-460.0,0.00027945,10]
[377037862,1754217040216,-460.0,0.00027945,10]
[377037864,1754217040225,-412.88939773,0.00027945,10]
[377037866,1754217040234,-460.0,0.00027945,10]
[377037868,1754217040243,-460.0,0.00027945,10]
[377037870,1754217040252,-493.08103368,0.00027945,10]
[377037872,1754217040261,-575.27060609,0.00027945,10]
[377037874,1754217040271,-460.0,0.00027945,10]
[377037876,1754217040280,-500.0,0.00027945,10]
[377037878,1754217040289,-460.0,0.00027945,10]
[377037880,1754217040299,-500.0,0.00027945,10]
[377037882,1754217040309,-532.96137956,0.00027945,10]
[377037884,1754217040319,-460.79282248,0.00027945,10]
[377037886,1754217040328,-460.0,0.00027945,10]
[377037888,1754217040338,-460.0,0.00027945,10]
[377037890,1754217040347,-460.0,0.00027945,10]
[377037892,1754217040357,-460.0,0.00027945,10]
[377037893,1754217040367,-460.0,0.00027945,10]
[377037895,1754217040376,-460.0,0.00027945,10]
[377037897,1754217040386,-460.0,0.00027945,10]
[377037899,1754217040396,-460.0,0.00027945,10]
[377037901,1754217040405,-460.0,0.00027945,10]
[377037903,1754217040414,-460.0,0.00027945,10]
[377037905,1754217040424,-461.29987958,0.00027945,10]
[377037907,1754217040434,-460.0,0.00027945,10]
[377037909,1754217040444,-460.0,0.00027945,10]
[377037911,1754217040453,-248.21036608,0.00027945,10]
[377037923,1754217040463,-175.42975143,0.00027945,10]
[377037925,1754217040558,-460.0,0.00027945,10]
[377037927,1754217040567,-460.0,0.00027945,10]
[377037930,1754217040585,-460.0,0.00027945,10]
[377037932,1754217040597,-460.0,0.00027945,10]
[377037934,1754217040607,-533.64347881,0.00027945,10]
[377037936,1754217040618,-460.0,0.00027945,10]
[377037938,1754217040629,-460.0,0.00027945,10]
[377037940,1754217040639,-460.0,0.00027945,10]
[377037942,1754217040649,-460.0,0.00027945,10]
[377037944,1754217040659,-460.0,0.00027945,10]
[377037946,1754217040669,-460.0,0.00027945,10]
[377037948,1754217040679,-460.0,0.00027945,10]
[377037950,1754217040689,-460.0,0.00027945,10]
[377037952,1754217040699,-460.0,0.00027945,10]
[377037954,1754217040709,-460.0,0.00027945,10]
[377037956,1754217040718,-460.0,0.00027945,10]
[377037958,1754217040728,-460.0,0.00027945,10]
[377037960,1754217040738,-460.0,0.00027945,10]
[377037962,1754217040748,-460.0,0.00027945,10]
[377037964,1754217040758,-460.0,0.00027945,10]
[377037967,1754217040768,-322.09592722,0.00027945,10]
[377037969,1754217040778,-460.0,0.00027945,10]
[377037970,1754217040789,-151.0,0.00027945,7]
[377037971,1754217040798,-151.0,0.00027945,7]
[377037972,1754217040808,-460.0,0.00027945,10]
[377037973,1754217040817,-460.0,0.00027945,10]
[377037974,1754217040827,-460.0,0.00027945,10]
[377037975,1754217040836,-460.0,0.00027945,10]
[377037976,1754217040846,-460.0,0.00027945,10]
[377037977,1754217040856,-460.0,0.00027945,10]
[377037978,1754217040866,-460.0,0.00027945,10]
[377037979,1754217040875,-460.0,0.00027945,10]
[377037980,1754217040884,-460.0,0.00027945,10]
[377037981,1754217040893,-460.0,0.00027945,10]
[377037982,1754217040902,-460.0,0.00027945,10]
[377037983,1754217040911,-170.0573088,0.00027945,10]
[377037984,1754217040921,-460.0,0.00027945,10]
[377037985,1754217040930,-462.14564478,0.00027945,10]
[377037986,1754217040946,-530.45,0.00027945,10]
[377037987,1754217040955,-530.45,0.00027945,10]
[377037988,1754217040965,-530.45,0.00027945,10]
[377037989,1754217040974,-530.45,0.00027945,10]
[377037990,1754217040984,-530.45,0.00027945,10]
[377037991,1754217040993,-530.45,0.00027945,10]
[377037992,1754217041003,-530.45,0.00027945,10]
[377037993,1754217041015,-530.45,0.00027945,10]
[377037994,1754217041024,-530.45,0.00027945,10]
[377037995,1754217041034,-530.45,0.00027945,10]
[377037996,1754217041043,-530.45,0.00027945,10]
[377037998,1754217041052,-530.45,0.00027945,10]
[377038000,1754217041063,-460.0,0.00027945,10]
[377038002,1754217041072,-460.0,0.00027945,10]
[377038004,1754217041081,-330.61426934,0.00027945,10]
[377038006,1754217041092,-460.0,0.00027945,10]
[377038008,1754217041101,-460.0,0.00027945,10]
[377038010,1754217041111,-460.0,0.00027945,10]
[377038012,1754217041120,-460.0,0.00027945,10]
[377038014,1754217041129,-460.0,0.00027945,10]
[377038016,1754217041139,-500.0,0.00027945,10]
[377038018,1754217041149,-460.0,0.00027945,10]
[377038020,1754217041158,-460.0,0.00027945,10]
[377038022,1754217041168,-460.0,0.00027945,10]
[377038024,1754217041177,-460.0,0.00027945,10]
[377038026,1754217041186,-460.0,0.00027945,10]
[377038028,1754217041196,-460.0,0.00027945,10]
[377038030,1754217041205,-460.0,0.00027945,10]
[377038032,1754217041219,-460.0,0.00027945,10]
[377038034,1754217041229,-460.0,0.00027945,10]
[377038036,1754217041239,-460.0,0.00027945,10]
[377038037,1754217041248,-460.0,0.00027945,10]
[377038039,1754217041258,-460.0,0.00027945,10]
[377038041,1754217041267,-460.0,0.00027945,10]
[377038043,1754217041277,-460.0,0.00027945,10]
[377038045,1754217041286,-460.0,0.00027945,10]
[377038047,1754217041295,-460.0,0.00027945,10]
[377038049,1754217041305,-460.0,0.00027945,10]
[377038051,1754217041314,-272.09540538,0.00027945,10]
[377038053,1754217041324,-460.0,0.00027945,10]
[377038055,1754217041333,-460.0,0.00027945,10]
[377038057,1754217041342,-460.0,0.00027945,10]
[377038059,1754217041351,-460.0,0.00027945,10]
[377038061,1754217041361,-460.0,0.00027945,10]
[377038063,1754217041371,-460.0,0.00027945,10]
[377038065,1754217041380,-460.0,0.00027945,10]
[377038067,1754217041389,-460.0,0.00027945,10]
[377038069,1754217041399,-460.0,0.00027945,10]
[377038071,1754217041408,-460.0,0.00027945,10]
[377038073,1754217041418,-460.0,0.00027945,10]
[377038075,1754217041427,-460.0,0.00027945,10]
[377038077,1754217041436,-460.0,0.00027945,10]
[377038079,1754217041446,-462.77438072,0.00027945,10]
[377038081,1754217041455,-460.0,0.00027945,10]
[377038083,1754217041464,-460.0,0.00027945,10]
[377038085,1754217041474,-464.14821382,0.00027945,10]
[377038087,1754217041483,-460.0,0.00027945,10]
[377038089,1754217041493,-460.0,0.00027945,10]
[377038091,1754217041502,-460.0,0.00027945,10]
[377038093,1754217041511,-460.0,0.00027945,10]
[377038095,1754217041521,-460.0,0.00027945,10]
[377038097,1754217041530,-460.0,0.00027945,10]
[377038099,1754217041539,-460.0,0.00027945,10]
[377038101,1754217041548,-460.0,0.00027945,10]
[377038103,1754217041557,-460.0,0.00027945,10]
[377038105,1754217041567,-460.0,0.00027945,10]
[377038107,1754217041576,-460.0,0.00027945,10]
[377038109,1754217041585,-460.0,0.00027945,10]
[377038111,1754217041595,-460.0,0.00027945,10]
[377038113,1754217041604,-460.0,0.00027945,10]
[377038114,1754217041614,-365.13,0.00027945,10]
[377038116,1754217041624,-460.0,0.00027945,10]
[377038118,1754217041633,-151.0,0.00027945,7]
[377038120,1754217041643,-151.0,0.00027945,7]
[377038122,1754217041652,-527.12062288,0.00027945,10]
[377038124,1754217041662,-460.0,0.00027945,10]
[377038127,1754217041673,-460.0,0.00027945,10]
[377038129,1754217041682,-460.0,0.00027945,10]
[377038130,1754217041691,-460.0,0.00027945,10]
[377038132,1754217041701,-460.0,0.00027945,10]
[377038134,1754217041711,-460.0,0.00027945,10]
[377038136,1754217041720,-500.0,0.00027945,10]
[377038138,1754217041730,-460.68805506,0.00027945,10]
[377038140,1754217041739,-500.0,0.00027945,10]
[377038142,1754217041749,-455.02731498,0.00027945,10]
[377038144,1754217041758,-460.0,0.00027945,10]
[377038147,1754217041768,-460.0,0.00027945,10]
[377038148,1754217041778,-460.0,0.00027945,10]
[377038150,1754217041788,-576.07861233,0.00027945,10]
[377038152,1754217041797,-460.0,0.00027945,10]
[377038154,1754217041807,-460.0,0.00027945,10]
[377038156,1754217041817,-460.0,0.00027945,10]
[377038158,1754217041826,-460.0,0.00027945,10]
[377038160,1754217041835,-469.82383524,0.00027945,10]
[377038162,1754217041845,-460.0,0.00027945,10]
[377038164,1754217041855,-460.0,0.00027945,10]
[377038167,1754217041865,-460.0,0.00027945,10]
[377038169,1754217041875,-460.0,0.00027945,10]
[377038171,1754217041884,-463.28090807,0.00027945,10]
[377038173,1754217041894,-460.0,0.00027945,10]
[377038175,1754217041903,-460.0,0.00027945,10]
[377038177,1754217041913,-460.0,0.00027945,10]
[377038179,1754217041922,-468.09214521,0.00027945,10]
[377038181,1754217041932,-460.0,0.00027945,10]
[377038183,1754217041941,-460.0,0.00027945,10]
[377038185,1754217041950,-460.0,0.00027945,10]
[377038187,1754217041959,-460.0,0.00027945,10]
[377038189,1754217041969,-460.0,0.00027945,10]
[377038191,1754217041980,-460.0,0.00027945,10]
[377038193,1754217041989,-460.0,0.00027945,10]
[377038195,1754217041998,-500.0,0.00027945,10]
[377038197,1754217042008,-460.0,0.00027945,10]
[377038199,1754217042017,-460.0,0.00027945,10]
[377038201,1754217042027,-460.0,0.00027945,10]
[377038203,1754217042039,-460.0,0.00027945,10]
[377038205,1754217042048,-460.0,0.00027945,10]
[377038207,1754217042057,-460.0,0.00027945,10]
[377038209,1754217042067,-500.0,0.00027945,2]
[377038211,1754217042075,-460.0,0.00027945,10]
[377038213,1754217042085,-460.0,0.00027945,10]
[377038215,1754217042096,-460.0,0.00027945,10]
[377038217,1754217042105,-460.0,0.00027945,10]
[377038218,1754217042114,-460.0,0.00027945,10]
[377038219,1754217042124,-460.0,0.00027945,10]
[377038220,1754217042133,-460.0,0.00027945,10]
[377038221,1754217042143,-460.0,0.00027945,10]
[377038222,1754217042152,-460.0,0.00027945,10]
[377038223,1754217042161,-460.0,0.00027945,10]
[377038224,1754217042171,-460.0,0.00027945,10]
[377038225,1754217042179,-460.0,0.00027945,10]
[377038226,1754217042189,-460.0,0.00027945,10]
[377038227,1754217042198,-460.0,0.00027945,10]
[377038228,1754217042208,-502.60673499,0.00027945,2]
[377038229,1754217042217,-460.0,0.00027945,10]
[377038230,1754217042227,-460.0,0.00027945,10]
[377038231,1754217042236,-460.0,0.00027945,10]
[377038232,1754217042246,-460.0,0.00027945,10]
[377038233,1754217042255,-460.0,0.00027945,10]
[377038234,1754217042264,-460.0,0.00027945,10]
[377038235,1754217042273,-460.0,0.00027945,10]
[377038236,1754217042282,-460.0,0.00027945,10]
[377038237,1754217042291,-460.0,0.00027945,10]
[377038238,1754217042301,-460.0,0.00027945,10]
[377038239,1754217042311,-515.41,0.00027945,10]
[377038240,1754217042321,-463.00753659,0.00027945,10]
[377038241,1754217042331,-151.0,0.00027945,7]
[377038242,1754217042340,-460.0,0.00027945,10]
[377038243,1754217042349,-151.0,0.00027945,7]
[377038244,1754217042359,-460.0,0.00027945,10]
[377038245,1754217042368,-591.47715429,0.00027945,10]
[377038246,1754217042377,-460.0,0.00027945,10]
[377038247,1754217042387,-460.0,0.00027945,10]
[377038248,1754217042396,-460.0,0.00027945,10]
[377038249,1754217042406,-460.0,0.00027945,10]
[377038250,1754217042415,-460.0,0.00027945,10]
[377038251,1754217042425,-386.14242188,0.00027945,10]
[377038252,1754217042435,-460.0,0.00027945,10]
[377038253,1754217042444,-460.0,0.00027945,10]
[377038254,1754217042454,-460.0,0.00027945,10]
[377038255,1754217042463,-460.0,0.00027945,10]
[377038256,1754217042472,-151.0,0.00027962,7]
[377038257,1754217042483,-8515.85482481,0.00027962,2]
[377038258,1754217042492,-530.45,0.00027971,10]
[377038259,1754217042502,-460.0,0.00027971,10]
[377038260,1754217042512,-460.0,0.00027972,10]
[377038261,1754217042521,-460.0,0.00027972,10]
[377038262,1754217042531,-460.0,0.00027972,10]
[377038263,1754217042540,-493.93535552,0.00027972,10]
[377038264,1754217042549,-460.0,0.00027972,10]
[377038265,1754217042559,-460.0,0.00027972,10]
[377038266,1754217042568,-460.0,0.00027972,10]
[377038267,1754217042577,-460.0,0.00027972,10]
[377038268,1754217042587,-460.0,0.00027972,10]
[377038269,1754217042597,-460.0,0.00027972,10]
[377038270,1754217042607,-608.49658072,0.00027973,5]
[377038271,1754217042617,-500.0,0.00027973,5]
[377038272,1754217042627,-500.0,0.00027973,5]
[377038273,1754217042636,-500.0,0.00027973,5]
[377038274,1754217042645,-509.3110749,0.00027973,5]
[377038275,1754217042654,-500.0,0.00027973,5]
[377038276,1754217042664,-500.0,0.00027973,5]
[377038277,1754217042673,-445.16114975,0.00027973,3]
[377038278,1754217042682,-500.0,0.00027973,5]
[377038279,1754217042692,-500.0,0.00027973,5]
[377038280,1754217042702,-500.0,0.00027973,5]
[377038281,1754217042711,-500.0,0.00027973,5]
[377038282,1754217042720,-500.0,0.00027973,5]
[377038283,1754217042729,-500.0,0.00027973,5]
[377038284,1754217042738,-500.0,0.00027973,5]
[377038285,1754217042747,-500.0,0.00027973,5]
[377038286,1754217042758,-500.0,0.00027973,5]
[377038287,1754217042767,-524.22600737,0.00027973,5]
[377038288,1754217042777,-294.76,0.00028,7]
[377038289,1754217042787,-1952.56,0.00028,7]
[377038290,1754217042796,-975.31,0.00028,7]
[377038291,1754217042806,-22788.11,0.00028,2]
[377038292,1754217042816,-618.69,0.000281,2]
[377038293,1754217042825,-420.0,0.00028137,2]
[377038294,1754217042835,-500.0,0.00028219,10]
[377038295,1754217042845,-3999.59765669,0.0002828,4]
[377038296,1754217042855,-500.0,0.00028493,10]
[377038297,1754217042865,-407.53732424,0.00028521,5]
[377038298,1754217042875,-1000.0,0.00028521,5]
[377038299,1754217042884,-1000.0,0.00028521,5]
[377038300,1754217042894,-347.13850684,0.00028521,5]
[377038301,1754217042903,-500.0,0.00028521,5]
[377038302,1754217042913,-1000.0,0.00028521,5]
[377038303,1754217042922,-246.22,0.00028602,2]
[377038304,1754217042932,-500.01345688,0.00028767,10]
[377038305,1754217042941,-150.0,0.00028958,2]
[377038306,1754217042951,-160.0,0.00029063,2]
[377038307,1754217042961,-460.0,0.00029067,10]
[377038308,1754217042970,-460.0,0.00029067,10]
[377038310,1754217042979,-460.0,0.00029067,10]
[377038312,1754217042989,-460.0,0.00029067,10]
[377038313,1754217042999,-1000.0,0.00029068,5]
[377038315,1754217043009,-1500.0,0.00029068,5]
[377038316,1754217043020,-177.389451,0.00029252,2]
[377038318,1754217043030,-941.64,0.00029301,3]
[377038322,1754217043040,-470.82,0.00029301,3]
[377038326,1754217043147,-653.92,0.00029301,3]
[377038327,1754217043157,-326.96,0.00029301,3]
[377038329,1754217043167,-1634.83,0.0002931,4]
[377038331,1754217043176,-152.52088525,0.00029406,2]
[377038332,1754217043186,-460.0,0.0002942,10]
[377038333,1754217043195,-460.0,0.0002942,10]
[377038334,1754217043205,-460.0,0.0002942,10]
[377038335,1754217043214,-2200.0,0.00029431,2]
[377038336,1754217043224,-407.0,0.00029468,2]
[377038337,1754217043234,-150.0,0.00029486,2]
[377038338,1754217043243,-260.0,0.0002961,2]
[377038339,1754217043253,-2000.0,0.00029616,5]
[377038340,1754217043262,-261.59570412,0.0002983,5]
[377038341,1754217043271,-200.0,0.00029932,15]
[377038342,1754217043280,-200.0,0.00029932,15]
[377038343,1754217043289,-300.0,0.00029932,15]
[377038344,1754217043300,-360.0,0.00030158,2]
[377038345,1754217043309,-2500.0,0.00030164,5]
[377038346,1754217043318,-200.0,0.00030316,120]
[377038347,1754217043328,-530.45,0.00030377,10]
[377038348,1754217043337,-460.0,0.00030377,10]
[377038349,1754217043348,-587.0,0.0003045,2]
[377038350,1754217043357,-277.7637517,0.00030643,30]
[377038351,1754217043368,-460.0,0.00030672,10]
[377038352,1754217043378,-460.0,0.00030672,10]
[377038353,1754217043387,-460.0,0.00030672,10]
[377038354,1754217043397,-460.0,0.00030672,10]
[377038355,1754217043407,-1634.83,0.0003068,6]
[377038356,1754217043416,-151.0,0.00030683,7]
[377038357,1754217043426,-8515.85482481,0.00030702,2]
[377038358,1754217043436,-380.0,0.00030706,2]
[377038359,1754217043445,-3000.0,0.00030712,5]
[377038360,1754217043456,-22788.11,0.000308,2]
[377038361,1754217043466,-796.26888301,0.00030859,2]
[377038362,1754217043475,-151.0,0.000311,120]
[377038363,1754217043484,-200.0,0.00031223,120]
[377038364,1754217043495,-3500.0,0.0003126,5]
[377038365,1754217043505,-200.0,0.00031633,120]
[377038366,1754217043514,-4000.0,0.00031808,5]
[377038367,1754217043523,-200.0,0.00031858,120]
[377038368,1754217043533,-1952.56,0.000319,7]
[377038369,1754217043543,-1634.83,0.0003205,8]
[377038370,1754217043552,-665.85209004,0.00032053,2]
[377038371,1754217043561,-975.31,0.000321,7]
[377038372,1754217043571,-200.0,0.00032105,120]
[377038373,1754217043581,-200.0,0.00032257,120]
[377038374,1754217043591,-200.0,0.00032286,120]
[377038375,1754217043601,-151.0,0.000323,120]
[377038376,1754217043610,-967.19032018,0.00032356,5]
[377038377,1754217043620,-407.0,0.00032468,2]
[377038378,1754217043631,-200.0,0.00032651,120]
[377038379,1754217043640,-200.0,0.00032673,120]
[377038380,1754217043649,-460.0,0.00032699,10]
[377038382,1754217043658,-460.0,0.00032699,10]
[377038383,1754217043668,-460.0,0.00032699,10]
[377038385,1754217043677,-294.76,0.000327,7]
[377038387,1754217043687,-151.0,0.000327,7]
[377038389,1754217043698,-200.0,0.0003282,15]
[377038390,1754217043707,-200.0,0.0003282,15]
[377038391,1754217043717,-200.0,0.0003282,15]
[377038392,1754217043726,-379.0,0.0003282,15]
[377038393,1754217043736,-823.0,0.00032954,2]
[377038394,1754217043746,-161.608095,0.00033165,2]
[377038395,1754217043756,-200.0,0.00033265,120]
[377038396,1754217043766,-200.0,0.00033401,120]
[377038397,1754217043775,-1634.83,0.0003342,120]
[377038398,1754217043785,-151.0,0.000335,120]
[377038399,1754217043794,-177.389451,0.00033818,2]
[377038400,1754217043804,-796.26888301,0.00033873,2]
[377038401,1754217043814,-151.0,0.000347,120]
[377038402,1754217043823,-200.0,0.00034715,120]
[377038403,1754217043833,-1634.83,0.00034789,120]
[377038404,1754217043842,-200.0,0.00034803,120]
[377038405,1754217043852,-22788.11,0.000349,14]
[377038406,1754217043862,-1000.0,0.00035,90]
[377038407,1754217043872,-200.0,0.00035102,120]
[377038409,1754217043882,-246.22,0.0003519,2]
[377038411,1754217043891,-530.45,0.00035206,10]
[377038412,1754217043900,-460.0,0.00035206,10]
[377038413,1754217043910,-460.0,0.00035467,10]
[377038414,1754217043919,-197.65918487,0.00035467,10]
[377038415,1754217043929,-460.0,0.00035467,10]
[377038416,1754217043938,-460.0,0.00035467,10]
[377038417,1754217043948,-407.0,0.00035468,2]
[377038418,1754217043957,-200.0,0.00035645,120]
[377038419,1754217043967,-1152.0,0.00035664,2]
[377038420,1754217043976,-1952.56,0.000357,14]
[377038421,1754217043986,-151.0,0.000359,120]
[377038422,1754217043995,-200.0,0.00035986,15]
[377038423,1754217044004,-200.0,0.00035986,15]
[377038424,1754217044014,-200.0,0.00035986,15]
[377038425,1754217044023,-200.0,0.00035986,15]
[377038426,1754217044033,-200.0,0.00035986,15]
[377038427,1754217044042,-371.0,0.00035986,15]
[377038428,1754217044051,-1000.0,0.00036,90]
[377038429,1754217044061,-975.31,0.00036,7]
[377038430,1754217044071,-1634.83,0.00036159,120]
[377038431,1754217044080,-164.13,0.00036262,2]
[377038432,1754217044089,-530.45,0.00036338,10]
[377038433,1754217044098,-460.0,0.00036338,10]
[377038434,1754217044107,-200.0,0.00036349,120]
[377038435,1754217044117,-200.0,0.00036414,120]
[377038436,1754217044126,-500.24555011,0.00036582,5]
[377038438,1754217044135,-337.503316,0.00036582,5]
[377038440,1754217044144,-177.987096,0.00036862,14]
[377038442,1754217044153,-500.0,0.00036863,5]
[377038444,1754217044162,-796.26888301,0.00036886,2]
[377038445,1754217044172,-500.0,0.00036963,5]
[377038447,1754217044182,-500.0,0.00036963,5]
[377038449,1754217044193,-491.8380123,0.00036963,5]
[377038451,1754217044204,-500.48698167,0.00036963,5]
[377038453,1754217044214,-503.78864115,0.00036963,5]
[377038454,1754217044224,-460.0,0.00036972,10]
[377038455,1754217044233,-460.0,0.00036972,10]
[377038456,1754217044243,-173.65630402,0.00036972,10]
[377038457,1754217044253,-408.64105568,0.00036973,5]
[377038458,1754217044262,-500.0,0.00036973,5]
[377038459,1754217044272,-500.0,0.00036973,5]
[377038460,1754217044281,-8515.85482481,0.0003698,3]
[377038462,1754217044294,-460.0,0.00036999,10]
[377038464,1754217044307,-460.0,0.00036999,10]
[377038466,1754217044320,-151.53,0.00036999,10]
[377038469,1754217044332,-6664.18516909,0.00037,30]
[377038471,1754217044345,-1000.0,0.00037,90]
[377038473,1754217044356,-500.0,0.00037043,5]
[377038475,1754217044367,-528.82260462,0.00037043,5]
[377038477,1754217044377,-460.0,0.00037099,10]
[377038479,1754217044388,-460.0,0.00037099,10]
[377038481,1754217044400,-151.0,0.000371,120]
[377038484,1754217044411,-530.45,0.00037233,10]
[377038486,1754217044422,-460.0,0.00037233,10]
[377038488,1754217044434,-500.60236846,0.0003751,5]
[377038490,1754217044445,-265.51548543,0.00037521,5]
[377038493,1754217044456,-1634.83,0.00037529,120]
[377038495,1754217044468,-1000.0,0.00037591,5]
[377038497,1754217044479,-200.0,0.00037921,120]
[377038499,1754217044490,-241.31593178,0.00038,14]
[377038501,1754217044500,-294.76,0.00038,7]
[377038504,1754217044513,-1000.0,0.00038,90]
[377038506,1754217044524,-1500.0,0.00038139,5]
[377038508,1754217044537,-200.0,0.00038196,120]
[377038511,1754217044549,-22788.11,0.000382,14]
[377038513,1754217044560,-151.0,0.000383,120]
[377038515,1754217044571,-400.0,0.00038356,120]
[377038517,1754217044583,-246.22,0.0003838,2]
[377038519,1754217044594,-177.389451,0.00038385,2]
[377038521,1754217044607,-407.0,0.00038468,2]
[377038523,1754217044619,-1613.0,0.00038596,5]
[377038525,1754217044631,-460.0,0.00038618,120]
[377038528,1754217044643,-973.3304,0.00038687,5]
[377038530,1754217044654,-200.0,0.00038887,120]
[377038532,1754217044665,-1634.83,0.00038899,120]
[377038535,1754217044676,-1952.56,0.000389,14]
[377038537,1754217044687,-151.0,0.000389,14]
[377038539,1754217044698,-151.0,0.00038931,14]
[377038541,1754217044708,-151.0,0.00038931,14]
[377038543,1754217044718,-151.0,0.00038931,14]
[377038544,1754217044729,-460.0,0.00038999,120]
[377038545,1754217044740,-530.45,0.00038999,120]
[377038546,1754217044751,-557.32548679,0.00038999,120]
[377038547,1754217044763,-460.0,0.00038999,120]